fUSD/lending_fUSD_20250112
["ID","MTS","AMOUNT","RATE_DAILY","PERIOD"]
[348697961,1736723460641,-500.0,0.00011641,2]
[348697962,1736723460650,-535.42,0.00011641,2]
[348697963,1736723460660,-525.03,0.00011641,2]
[348697964,1736723460669,-500.0,0.00011641,2]
[348697965,1736723460677,-500.0,0.00011641,2]
[348697966,1736723460686,-500.0,0.00011641,2]
[348697967,1736723460695,-500.0,0.00011641,2]
[348697968,1736723460705,-500.0,0.00011641,2]
[348697969,1736723460714,-372.65064333,0.00011641,2]
[348697970,1736723460723,-500.0,0.00011641,2]
[348697971,1736723460732,-500.0,0.00011641,2]
[348697972,1736723460741,-879.51,0.00011641,2]
[348697973,1736723460750,-500.0,0.00011641,2]
[348697974,1736723460760,-500.0,0.00011641,2]
[348697975,1736723460769,-500.0,0.00011641,2]
[348697976,1736723460778,-500.0,0.00011641,2]
[348697977,1736723460787,-511.24,0.00011641,2]
[348697978,1736723460796,-500.0,0.00011641,2]
[348697979,1736723460805,-500.0,0.00011641,2]
[348697980,1736723460815,-500.0,0.00011641,2]
[348697981,1736723460825,-500.0,0.00011641,2]
[348697982,1736723460834,-500.0,0.00011641,2]
[348697983,1736723460844,-500.0,0.00011641,2]
[348697984,1736723460853,-500.0,0.00011641,2]
[348697985,1736723460862,-500.0,0.00011641,2]
[348697986,1736723460871,-500.0,0.00011641,2]
[348697987,1736723460880,-500.0,0.00011641,2]
[348697988,1736723460889,-500.0,0.00011641,2]
[348697989,1736723460898,-545.84,0.00011641,2]
[348697990,1736723460907,-1161.39,0.00011641,2]
[348697991,1736723460916,-500.0,0.00011641,2]
[348697992,1736723460925,-500.0,0.00011641,2]
[348697993,1736723460934,-934.8,0.00011641,2]
[348697994,1736723460943,-500.0,0.00011641,2]
[348697995,1736723460953,-2739.92,0.00011641,2]
[348697996,1736723460962,-563.39350051,0.00011641,2]
[348697997,1736723460971,-500.0,0.00011641,2]
[348697998,1736723460981,-1112.93,0.00011641,2]
[348697999,1736723460990,-500.0,0.00011641,2]
[348698000,1736723460998,-500.0,0.00011641,2]
[348698001,1736723461008,-1961.1,0.00011641,2]
[348698002,1736723461017,-617.93,0.00011641,2]
[348698003,1736723461026,-539.12,0.00011641,2]
[348698004,1736723461035,-500.0,0.00011641,2]
[348698005,1736723461044,-516.61,0.00011641,2]
[348698006,1736723461054,-563.6,0.00011641,2]
[348698007,1736723461063,-541.77,0.00011641,2]
[348698008,1736723461072,-500.0,0.00011641,2]
[348698009,1736723461081,-1408.99,0.00011641,2]
[348698010,1736723461090,-881.31,0.00011641,2]
[348698011,1736723461100,-500.0,0.00011641,2]
[348698012,1736723461109,-500.0,0.00011641,2]
[348698013,1736723461118,-500.0,0.00011641,2]
[348698014,1736723461127,-500.0,0.00011641,2]
[348698015,1736723461137,-500.0,0.00011641,2]
[348698016,1736723461198,-1597.13,0.00011641,2]
[348698017,1736723461208,-500.0,0.00011641,2]
[348698018,1736723461217,-336.573048,0.00011641,2]
[348698019,1736723461226,-1968.91,0.00011641,2]
[348698020,1736723461236,-500.0,0.00011641,2]
[348698021,1736723461245,-500.0,0.00011641,2]
[348698022,1736723461254,-558.07,0.00011641,2]
[348698023,1736723461267,-1555.09,0.00011641,2]
[348698024,1736723461276,-500.0,0.00011641,2]
[348698025,1736723461285,-401.121639,0.00011641,2]
[348698026,1736723461295,-500.0,0.00011641,2]
[348698027,1736723461305,-838.24,0.00011641,2]
[348698028,1736723461314,-500.0,0.00011641,2]
[348698029,1736723461323,-500.0,0.00011641,2]
[348698030,1736723461331,-500.0,0.00011641,2]
[348698031,1736723461340,-622.96,0.00011641,2]
[348698032,1736723461349,-500.0,0.00011641,2]
[348698033,1736723461358,-500.0,0.00011641,2]
[348698034,1736723461367,-500.0,0.00011641,2]
[348698035,1736723461375,-564.97,0.00011641,2]
[348698036,1736723461384,-500.0,0.00011641,2]
[348698037,1736723461393,-500.0,0.00011641,2]
[348698038,1736723461402,-500.0,0.00011641,2]
[348698039,1736723461411,-500.0,0.00011641,2]
[348698040,1736723461421,-500.0,0.00011641,2]
[348698041,1736723461431,-500.0,0.00011641,2]
[348698042,1736723461441,-500.0,0.00011641,2]
[348698043,1736723461451,-1949.57,0.00011641,2]
[348698044,1736723461461,-762.22,0.00011641,2]
[348698045,1736723461472,-500.0,0.00011642,2]
[348698046,1736723461482,-500.0,0.00011642,2]
[348698047,1736723461492,-500.0,0.00011642,2]
[348698048,1736723461501,-703.96,0.00011642,2]
[348698049,1736723461510,-500.0,0.00011642,2]
[348698050,1736723461520,-500.0,0.00011642,2]
[348698051,1736723461529,-1378.21,0.00011642,2]
[348698052,1736723461539,-500.0,0.00011642,2]
[348698053,1736723461548,-500.0,0.00011642,2]
[348698054,1736723461558,-500.0,0.00011642,2]
[348698055,1736723461569,-2136.75,0.00011642,2]
[348698056,1736723461578,-500.0,0.00011642,2]
[348698057,1736723461586,-500.0,0.00011642,2]
[348698058,1736723461595,-500.0,0.00011642,2]
[348698059,1736723461604,-2251.52,0.00011642,2]
[348698060,1736723461614,-500.0,0.00011642,2]
[348698061,1736723461625,-500.0,0.00011642,2]
[348698062,1736723461634,-923.65,0.00011642,2]
[348698063,1736723461644,-505.28,0.00011642,2]
[348698064,1736723461653,-1889.32,0.00011642,2]
[348698065,1736723461663,-500.0,0.00011642,2]
[348698066,1736723461672,-500.0,0.00011642,2]
[348698067,1736723461683,-500.0,0.00011642,2]
[348698068,1736723461692,-500.0,0.00011642,2]
[348698069,1736723461702,-500.34,0.00011642,2]
[348698070,1736723461713,-500.0,0.00011642,2]
[348698071,1736723461722,-639.13647976,0.00011642,2]
[348698072,1736723461732,-519.67,0.00011642,2]
[348698073,1736723461743,-500.0,0.00011642,2]
[348698074,1736723461753,-500.0,0.00011642,2]
[348698075,1736723461763,-592.28,0.00011642,2]
[348698076,1736723461772,-500.0,0.00011642,2]
[348698077,1736723461781,-500.0,0.00011642,2]
[348698078,1736723461790,-898.78,0.00011642,2]
[348698079,1736723461799,-766.07,0.00011642,2]
[348698080,1736723461807,-561.49,0.00011642,2]
[348698081,1736723461816,-2194.42,0.00011642,2]
[348698082,1736723461825,-901.07,0.00011642,2]
[348698083,1736723461835,-952.21,0.00011642,2]
[348698084,1736723461844,-1139.11,0.00011642,2]
[348698085,1736723461853,-1451.1,0.00011642,2]
[348698086,1736723461862,-896.25,0.00011642,2]
[348698087,1736723461871,-500.0,0.00011643,2]
[348698088,1736723461880,-875.87,0.00011643,2]
[348698089,1736723461890,-681.14,0.00011643,2]
[348698090,1736723461899,-946.98,0.00011643,2]
[348698091,1736723461909,-775.55,0.00011643,2]
[348698092,1736723461919,-500.0,0.00011643,2]
[348698093,1736723461930,-854.16,0.00011643,2]
[348698094,1736723461939,-1050.58,0.00011643,2]
[348698095,1736723461949,-745.7,0.00011643,2]
[348698096,1736723461958,-500.0,0.00011644,2]
[348698097,1736723461968,-300.0,0.000117,4]
[348698098,1736723461978,-764.0,0.000118,4]
[348698099,1736723461987,-368.66217887,0.00011817,2]
[348698100,1736723461996,-150.0,0.0001186,2]
[348698101,1736723462005,-150.0,0.00011861,2]
[348698102,1736723462015,-1500.0,0.00011873,2]
[348698103,1736723462024,-150.0,0.00011878,2]
[348698104,1736723462033,-150.0,0.00011885,2]
[348698105,1736723462043,-1500.0,0.00011885,2]
[348698106,1736723462052,-150.0,0.00011886,2]
[348698107,1736723462061,-150.0,0.00011889,2]
[348698108,1736723462070,-150.0,0.00011889,2]
[348698109,1736723462080,-150.0,0.00011889,2]
[348698110,1736723462089,-1500.0,0.00011891,2]
[348698111,1736723462098,-150.0,0.00011894,2]
[348698112,1736723462107,-150.0,0.00011898,2]
[348698113,1736723462116,-181.39186706,0.00011899,2]
[348698114,1736723462125,-981.5232,0.00011899,2]
[348698115,1736723462134,-150.0,0.00011899,2]
[348698116,1736723462143,-779.08061382,0.000119,2]
[348698117,1736723462151,-22601.05920316,0.000119,2]
[348698118,1736723462160,-22601.05920312,0.000119,2]
[348698119,1736723462169,-22601.05920312,0.000119,2]
[348698120,1736723462178,-22601.05920312,0.000119,2]
[348698121,1736723462187,-22601.05920312,0.000119,2]
[348698122,1736723462196,-22601.05920312,0.000119,2]
[348698123,1736723462205,-22601.05920312,0.000119,2]
[348698124,1736723462214,-22601.05920312,0.000119,2]
[348698125,1736723462223,-150.0,0.00011901,2]
[348698126,1736723462231,-150.0,0.00011901,2]
[348698127,1736723462241,-22601.05920312,0.00011904,2]
[348698128,1736723462249,-150.0,0.00011907,2]
[348698129,1736723462261,-150.0,0.00011907,2]
[348698130,1736723462272,-222.73349996,0.00011908,2]
[348698131,1736723462281,-150.0,0.0001191,2]
[348698132,1736723462290,-150.0,0.0001191,2]
[348698133,1736723462301,-1301.35,0.00011913,2]
[348698134,1736723462310,-1287.05,0.00011913,2]
[348698135,1736723462319,-956.33,0.00011913,2]
[348698136,1736723462329,-565.65,0.00011913,2]
[348698137,1736723462340,-1471.68,0.00011913,2]
[348698138,1736723462349,-500.0,0.00011913,2]
[348698139,1736723462358,-597.96,0.00011913,2]
[348698140,1736723462367,-611.22,0.00011913,2]
[348698141,1736723462375,-900.07,0.00011913,2]
[348698142,1736723462385,-518.6,0.00011913,2]
[348698143,1736723462394,-500.0,0.00011913,2]
[348698144,1736723462402,-558.53,0.00011914,2]
[348698145,1736723462411,-500.0,0.00011914,2]
[348698146,1736723462420,-504.01,0.00011915,2]
[348698147,1736723462430,-500.0,0.00011915,2]
[348698148,1736723462438,-500.0,0.00011915,2]
[348698149,1736723462447,-500.0,0.00011915,2]
[348698150,1736723462456,-500.0,0.00011915,2]
[348698151,1736723462465,-500.0,0.00011915,2]
[348698152,1736723462474,-500.0,0.00011915,2]
[348698153,1736723462483,-500.0,0.00011915,2]
[348698154,1736723462493,-500.0,0.00011915,2]
[348698155,1736723462502,-500.0,0.00011915,2]
[348698156,1736723462511,-500.0,0.00011915,2]
[348698157,1736723462520,-500.0,0.00011915,2]
[348698158,1736723462529,-500.0,0.00011915,2]
[348698159,1736723462538,-516.27655043,0.00011915,2]
[348698160,1736723462547,-535.42,0.00011915,2]
[348698161,1736723462556,-525.03,0.00011915,2]
[348698162,1736723462565,-500.0,0.00011915,2]
[348698163,1736723462574,-500.0,0.00011915,2]
[348698164,1736723462583,-500.0,0.00011915,2]
[348698165,1736723462592,-500.0,0.00011915,2]
[348698166,1736723462601,-500.0,0.00011915,2]
[348698167,1736723462610,-500.0,0.00011915,2]
[348698168,1736723462619,-500.0,0.00011915,2]
[348698169,1736723462628,-879.51,0.00011915,2]
[348698170,1736723462638,-500.0,0.00011915,2]
[348698171,1736723462647,-500.0,0.00011915,2]
[348698172,1736723462656,-500.0,0.00011915,2]
[348698173,1736723462666,-500.0,0.00011915,2]
[348698174,1736723462677,-511.24,0.00011915,2]
[348698175,1736723462688,-500.0,0.00011915,2]
[348698176,1736723462698,-500.0,0.00011915,2]
[348698177,1736723462708,-500.0,0.00011915,2]
[348698178,1736723462717,-500.0,0.00011915,2]
[348698179,1736723462727,-500.0,0.00011915,2]
[348698180,1736723462735,-500.0,0.00011915,2]
[348698181,1736723462744,-500.0,0.00011915,2]
[348698182,1736723462754,-500.0,0.00011915,2]
[348698183,1736723462763,-500.0,0.00011915,2]
[348698184,1736723462774,-500.0,0.00011915,2]
[348698185,1736723462783,-500.0,0.00011915,2]
[348698186,1736723462792,-545.84,0.00011915,2]
[348698187,1736723462801,-1161.39,0.00011915,2]
[348698188,1736723462810,-500.0,0.00011915,2]
[348698189,1736723462821,-500.0,0.00011915,2]
[348698190,1736723462830,-934.8,0.00011915,2]
[348698191,1736723462840,-500.0,0.00011915,2]
[348698192,1736723462850,-2739.92,0.00011915,2]
[348698193,1736723462860,-500.0,0.00011915,2]
[348698194,1736723462870,-1112.93,0.00011915,2]
[348698195,1736723462880,-500.0,0.00011915,2]
[348698196,1736723462889,-500.0,0.00011915,2]
[348698197,1736723462898,-1961.1,0.00011915,2]
[348698198,1736723462907,-617.93,0.00011915,2]
[348698199,1736723462916,-539.12,0.00011915,2]
[348698200,1736723462925,-500.0,0.00011915,2]
[348698201,1736723462935,-516.61,0.00011915,2]
[348698202,1736723462944,-563.6,0.00011915,2]
[348698203,1736723462954,-541.77,0.00011915,2]
[348698204,1736723462963,-500.0,0.00011915,2]
[348698205,1736723462972,-1408.99,0.00011915,2]
[348698206,1736723462982,-881.31,0.00011915,2]
[348698207,1736723462991,-500.0,0.00011915,2]
[348698208,1736723463000,-500.0,0.00011915,2]
[348698209,1736723463010,-500.0,0.00011915,2]
[348698210,1736723463019,-500.0,0.00011915,2]
[348698211,1736723463028,-500.0,0.00011915,2]
[348698212,1736723463037,-1597.13,0.00011915,2]
[348698213,1736723463047,-500.0,0.00011915,2]
[348698214,1736723463056,-336.573048,0.00011915,2]
[348698215,1736723463065,-1968.91,0.00011915,2]
[348698216,1736723463075,-500.0,0.00011915,2]
[348698217,1736723463084,-500.0,0.00011915,2]
[348698218,1736723463093,-558.07,0.00011915,2]
[348698219,1736723463102,-1555.09,0.00011915,2]
[348698220,1736723463112,-500.0,0.00011915,2]
[348698221,1736723463122,-401.121639,0.00011915,2]
[348698222,1736723463131,-500.0,0.00011915,2]
[348698223,1736723463142,-838.24,0.00011915,2]
[348698224,1736723463151,-500.0,0.00011915,2]
[348698225,1736723463160,-500.0,0.00011915,2]
[348698226,1736723463170,-500.0,0.00011915,2]
[348698227,1736723463179,-622.96,0.00011915,2]
[348698228,1736723463189,-500.0,0.00011915,2]
[348698229,1736723463198,-500.0,0.00011915,2]
[348698230,1736723463208,-500.0,0.00011915,2]
[348698231,1736723463217,-564.97,0.00011915,2]
[348698232,1736723463227,-475.72421025,0.00011915,2]
[348698233,1736723463236,-500.0,0.00011915,2]
[348698234,1736723463245,-500.0,0.00011915,2]
[348698235,1736723463254,-500.0,0.00011915,2]
[348698236,1736723463266,-500.0,0.00011915,2]
[348698237,1736723463275,-500.0,0.00011915,2]
[348698238,1736723463285,-366.14,0.00011915,2]
[348698239,1736723463295,-1949.57,0.00011915,2]
[348698240,1736723463304,-762.22,0.00011915,2]
[348698241,1736723463314,-500.0,0.00011916,2]
[348698242,1736723463323,-500.0,0.00011916,2]
[348698243,1736723463333,-500.0,0.00011916,2]
[348698244,1736723463342,-703.96,0.00011916,2]
[348698245,1736723463351,-500.0,0.00011916,2]
[348698246,1736723463361,-500.0,0.00011916,2]
[348698247,1736723463371,-1378.21,0.00011916,2]
[348698248,1736723463380,-500.0,0.00011916,2]
[348698249,1736723463390,-500.0,0.00011916,2]
[348698250,1736723463399,-500.0,0.00011916,2]
[348698251,1736723463409,-500.0,0.00011916,2]
[348698252,1736723463419,-2136.75,0.00011916,2]
[348698253,1736723463428,-500.0,0.00011916,2]
[348698254,1736723463438,-500.0,0.00011916,2]
[348698255,1736723463447,-2251.52,0.00011916,2]
[348698256,1736723463457,-500.0,0.00011916,2]
[348698257,1736723463467,-500.0,0.00011916,2]
[348698258,1736723463476,-923.65,0.00011916,2]
[348698259,1736723463485,-505.28,0.00011916,2]
[348698260,1736723463495,-1889.32,0.00011916,2]
[348698261,1736723463506,-500.0,0.00011916,2]
[348698262,1736723463515,-500.0,0.00011916,2]
[348698263,1736723463525,-500.0,0.00011916,2]
[348698264,1736723463534,-500.0,0.00011916,2]
[348698265,1736723463544,-500.34,0.00011916,2]
[348698266,1736723463554,-378.11427692,0.00011916,2]
[348698267,1736723463563,-519.67,0.00011916,2]
[348698268,1736723463573,-500.0,0.00011916,2]
[348698269,1736723463583,-500.0,0.00011916,2]
[348698270,1736723463592,-592.28,0.00011916,2]
[348698271,1736723463602,-500.0,0.00011916,2]
[348698272,1736723463611,-500.0,0.00011916,2]
[348698273,1736723463621,-898.78,0.00011916,2]
[348698274,1736723463631,-766.07,0.00011916,2]
[348698275,1736723463640,-561.49,0.00011916,2]
[348698276,1736723463650,-2194.42,0.00011916,2]
[348698277,1736723463660,-901.07,0.00011916,2]
[348698278,1736723463670,-952.21,0.00011916,2]
[348698279,1736723463679,-1139.11,0.00011916,2]
[348698280,1736723463689,-1451.1,0.00011916,2]
[348698281,1736723463699,-896.25,0.00011916,2]
[348698282,1736723463709,-500.0,0.00011917,2]
[348698283,1736723463719,-875.87,0.00011917,2]
[348698284,1736723463729,-681.14,0.00011917,2]
[348698285,1736723463738,-946.98,0.00011917,2]
[348698286,1736723463748,-775.55,0.00011917,2]
[348698287,1736723463758,-500.0,0.00011917,2]
[348698288,1736723463768,-854.16,0.00011917,2]
[348698289,1736723463778,-1050.58,0.00011917,2]
[348698290,1736723463787,-745.7,0.00011917,2]
[348698291,1736723463797,-150.0,0.00011918,2]
[348698292,1736723463809,-179.8681495,0.00011921,2]
[348698293,1736723463819,-150.0,0.00011921,2]
[348698294,1736723463832,-150.0,0.00011929,2]
[348698295,1736723463842,-1500.0,0.00011933,2]
[348698296,1736723463852,-150.0,0.00011935,2]
[348698297,1736723463861,-150.0,0.00011935,2]
[348698298,1736723463871,-1500.0,0.00011938,2]
[348698299,1736723463882,-1500.0,0.0001194,2]
[348698300,1736723463892,-150.0,0.00011945,2]
[348698301,1736723463902,-150.0,0.00011948,2]
[348698302,1736723463912,-150.0,0.00011949,2]
[348698303,1736723463921,-150.0,0.00011951,2]
[348698304,1736723463931,-150.0,0.00011952,2]
[348698305,1736723463941,-150.0,0.00011955,2]
[348698306,1736723463950,-150.0,0.00011956,2]
[348698307,1736723463960,-150.0,0.00011957,2]
[348698308,1736723463970,-1500.0,0.00011957,2]
[348698309,1736723463979,-150.0,0.00011959,2]
[348698310,1736723463989,-3546.154,0.0001196,2]
[348698311,1736723464000,-164.26,0.0001196,2]
[348698312,1736723464010,-150.0,0.00011964,2]
[348698313,1736723464020,-150.0,0.00011965,2]
[348698314,1736723464029,-150.0,0.00011966,2]
[348698315,1736723464039,-150.0,0.00011968,2]
[348698316,1736723464049,-150.0,0.0001197,2]
[348698317,1736723464059,-150.0,0.00011972,2]
[348698318,1736723464069,-150.0,0.00011972,2]
[348698319,1736723464079,-150.0,0.00011972,2]
[348698320,1736723464089,-589.47313621,0.00011973,2]
[348698321,1736723464098,-150.0,0.00011978,2]
[348698322,1736723464108,-150.0,0.0001198,2]
[348698323,1736723464118,-150.0,0.00011986,2]
[348698324,1736723464127,-150.0,0.00011986,2]
[348698325,1736723464137,-150.0,0.00011988,2]
[348698326,1736723464147,-150.0,0.00011989,2]
[348698327,1736723464156,-3639.66523741,0.00011991,2]
[348698328,1736723464167,-150.0,0.00011991,2]
[348698329,1736723464176,-150.0,0.00011991,2]
[348698330,1736723464186,-150.0,0.00011995,2]
[348698331,1736723464195,-150.0,0.00011997,2]
[348698332,1736723464204,-150.0,0.00011998,2]
[348698333,1736723464214,-19101.80881744,0.00012,3]
[348698334,1736723464224,-29664.69010218,0.00012,3]
[348698335,1736723464234,-8012.44025876,0.00012,4]
[348698336,1736723464244,-57412.25716205,0.00012,2]
[348698337,1736723464254,-50637.57352999,0.00012,2]
[348698338,1736723464265,-150.0,0.00012001,2]
[348698339,1736723464276,-1500.0,0.00012003,2]
[348698340,1736723464286,-150.0,0.00012006,2]
[348698341,1736723464296,-150.0,0.00012007,2]
[348698342,1736723464307,-150.0,0.00012007,2]
[348698343,1736723464316,-823.0,0.00012008,2]
[348698344,1736723464326,-150.0,0.00012012,2]
[348698345,1736723464335,-1500.0,0.00012014,2]
[348698346,1736723464346,-150.0,0.00012016,2]
[348698347,1736723464355,-150.0,0.00012019,2]
[348698348,1736723464365,-150.0,0.00012023,2]
[348698349,1736723464375,-150.0,0.00012023,2]
[348698350,1736723464384,-150.0,0.00012024,2]
[348698351,1736723464393,-150.0,0.00012024,2]
[348698352,1736723464403,-150.0,0.00012028,2]
[348698353,1736723464413,-150.0,0.00012039,2]
[348698354,1736723464422,-150.0,0.00012039,2]
[348698355,1736723464431,-150.0,0.00012042,2]
[348698356,1736723464441,-150.0,0.00012043,2]
[348698357,1736723464450,-150.0,0.00012044,2]
[348698358,1736723464461,-150.0,0.00012051,2]
[348698359,1736723464471,-200.0,0.00012055,2]
[348698360,1736723464481,-150.0,0.00012055,2]
[348698361,1736723464491,-150.0,0.00012058,2]
[348698362,1736723464501,-150.0,0.00012059,2]
[348698363,1736723464511,-150.0,0.00012062,2]
[348698364,1736723464523,-1500.0,0.00012062,2]
[348698365,1736723464533,-150.0,0.00012064,2]
[348698366,1736723464543,-150.0,0.00012064,2]
[348698367,1736723464554,-150.0,0.00012064,2]
[348698368,1736723464563,-150.0,0.00012065,2]
[348698369,1736723464573,-150.0,0.00012066,2]
[348698370,1736723464582,-1500.0,0.00012069,2]
[348698371,1736723464592,-150.0,0.0001207,2]
[348698372,1736723464601,-150.0,0.00012071,2]
[348698373,1736723464613,-150.0,0.00012072,2]
[348698374,1736723464624,-150.0,0.00012074,2]
[348698375,1736723464634,-150.0,0.00012077,2]
[348698376,1736723464644,-150.0,0.0001208,2]
[348698377,1736723464653,-150.0,0.00012082,2]
[348698378,1736723464663,-150.0,0.00012082,2]
[348698379,1736723464674,-150.0,0.00012086,2]
[348698380,1736723464684,-150.0,0.00012087,2]
[348698381,1736723464694,-150.0,0.00012089,2]
[348698382,1736723464704,-150.0,0.0001209,2]
[348698383,1736723464713,-1500.0,0.00012094,2]
[348698384,1736723464723,-1500.0,0.00012095,2]
[348698385,1736723464733,-292.99270296,0.000121,2]
[348698386,1736723464742,-150.0,0.00012108,2]
[348698387,1736723464752,-150.0,0.0001211,2]
[348698388,1736723464761,-2066.0,0.00012112,2]
[348698389,1736723464771,-158.73271715,0.00012114,2]
[348698390,1736723464780,-150.0,0.00012115,2]
[348698391,1736723464790,-150.0,0.00012115,2]
[348698392,1736723464799,-150.0,0.00012115,2]
[348698393,1736723464809,-150.0,0.00012118,2]
[348698394,1736723464819,-150.0,0.0001212,2]
[348698395,1736723464828,-150.0,0.0001212,2]
[348698396,1736723464838,-150.0,0.0001212,2]
[348698397,1736723464848,-150.0,0.00012121,2]
[348698398,1736723464857,-150.0,0.00012122,2]
[348698399,1736723464867,-150.0,0.00012122,2]
[348698400,1736723464876,-150.0,0.00012133,2]
[348698401,1736723464886,-1500.0,0.00012134,2]
[348698402,1736723464896,-150.0,0.00012137,2]
[348698403,1736723464906,-1500.0,0.0001214,2]
[348698404,1736723464916,-150.0,0.00012143,2]
[348698405,1736723464925,-150.0,0.0001215,2]
[348698406,1736723464935,-22601.05920312,0.00012154,2]
[348698407,1736723464945,-150.0,0.00012156,2]
[348698408,1736723464955,-1110.87,0.00012164,2]
[348698409,1736723464966,-1060.35,0.00012164,2]
[348698410,1736723464977,-1495.51,0.00012164,2]
[348698411,1736723464988,-3295.35,0.00012164,2]
[348698412,1736723464997,-683.35,0.00012164,2]
[348698413,1736723465007,-500.0,0.00012164,2]
[348698414,1736723465017,-500.0,0.00012164,2]
[348698415,1736723465026,-1226.42,0.00012164,2]
[348698416,1736723465036,-500.0,0.00012164,2]
[348698417,1736723465046,-500.0,0.00012164,2]
[348698418,1736723465055,-697.84,0.00012164,2]
[348698419,1736723465065,-799.66,0.00012164,2]
[348698420,1736723465075,-500.0,0.00012164,2]
[348698421,1736723465084,-1000.0,0.00012164,2]
[348698422,1736723465094,-662.49,0.00012164,2]
[348698423,1736723465103,-500.0,0.00012164,2]
[348698424,1736723465113,-1224.1,0.00012164,2]
[348698425,1736723465123,-1076.39,0.00012164,2]
[348698426,1736723465132,-1301.35,0.00012187,2]
[348698427,1736723465142,-1287.05,0.00012187,2]
[348698428,1736723465152,-956.33,0.00012187,2]
[348698429,1736723465162,-565.65,0.00012187,2]
[348698430,1736723465171,-1471.68,0.00012187,2]
[348698431,1736723465181,-500.0,0.00012187,2]
[348698432,1736723465190,-597.96,0.00012187,2]
[348698433,1736723465199,-611.22,0.00012187,2]
[348698434,1736723465209,-900.07,0.00012187,2]
[348698435,1736723465219,-518.6,0.00012187,2]
[348698436,1736723465393,-500.0,0.00012187,2]
[348698437,1736723465403,-558.53,0.00012188,2]
[348698438,1736723465414,-500.0,0.00012188,2]
[348698439,1736723465423,-504.01,0.00012189,2]
[348698440,1736723465433,-500.0,0.00012189,2]
[348698441,1736723465443,-500.0,0.00012189,2]
[348698442,1736723465452,-500.0,0.00012189,2]
[348698443,1736723465462,-500.0,0.00012189,2]
[348698444,1736723465471,-500.0,0.00012189,2]
[348698445,1736723465480,-500.0,0.00012189,2]
[348698446,1736723465489,-500.0,0.00012189,2]
[348698447,1736723465499,-500.0,0.00012189,2]
[348698448,1736723465508,-500.0,0.00012189,2]
[348698449,1736723465517,-614.02565915,0.00012189,2]
[348698450,1736723465527,-500.0,0.00012189,2]
[348698451,1736723465536,-500.0,0.00012189,2]
[348698452,1736723465546,-535.42,0.00012189,2]
[348698453,1736723465559,-525.03,0.00012189,2]
[348698454,1736723465568,-500.0,0.00012189,2]
[348698455,1736723465579,-500.0,0.00012189,2]
[348698456,1736723465588,-500.0,0.00012189,2]
[348698457,1736723465598,-500.0,0.00012189,2]
[348698458,1736723465608,-500.0,0.00012189,2]
[348698459,1736723465618,-500.0,0.00012189,2]
[348698460,1736723465627,-336.20700619,0.00012189,2]